fUST/lending_fUST_20251231
["ID","MTS","AMOUNT","RATE_DAILY","PERIOD"]
[400116128,1767132650904,-27398.66227658,0.00024142,2]
[400116129,1767132650913,-827.0,0.00024382,2]
[400116130,1767132650990,-23617.3,0.000244,3]
[400116131,1767132650999,-265.3,0.00024436,2]
[400116132,1767132651009,-828.0,0.00024465,2]
[400116133,1767132651018,-5116.0,0.00024492,2]
[400116134,1767132651027,-2579.17784983,0.00024597,2]
[400116135,1767132651037,-151.0,0.00024597,2]
[400116136,1767132651046,-533.88981491,0.00024597,2]
[400116137,1767132651056,-3100.47081617,0.000246,3]
[400116138,1767132651065,-825.0,0.00024649,2]
[400116139,1767132651074,-113605.30120642,0.0002465,2]
[400116140,1767132651083,-380.0,0.00024658,2]
[400116141,1767132651092,-416.0,0.00024663,2]
[400116142,1767132651102,-416.0,0.00024663,2]
[400116143,1767132651111,-70851.9,0.000247,3]
[400116144,1767132651120,-827.0,0.00024706,2]
[400116145,1767132651130,-1041.66666667,0.00024728,2]
[400116146,1767132651139,-300.35112488,0.00024774,14]
[400116147,1767132651148,-265.3,0.00024776,2]
[400116148,1767132651158,-159.47,0.000248,7]
[400116149,1767132651167,-1552.86,0.000248,14]
[400116150,1767132651176,-8981.25,0.000248,2]
[400116151,1767132651185,-1978.218114,0.000248,2]
[400116152,1767132651194,-151.0,0.0002487,2]
[400116153,1767132651204,-187.78006525,0.0002487,2]
[400116154,1767132651213,-825.0,0.00024876,7]
[400116155,1767132651222,-288.35,0.000249,7]
[400116156,1767132651231,-493325.106604,0.000249,2]
[400116157,1767132651240,-2000.0,0.00024917,7]
[400116158,1767132651249,-416.60272357,0.00024917,2]
[400116159,1767132651258,-10390.32906121,0.00025,2]
[400116160,1767132651267,-27204.6532481,0.00025,15]
[400116161,1767132651276,-1041.66666667,0.00025,3]
[400116162,1767132651286,-825.0,0.00025076,2]
[400116163,1767132651295,-1703.0,0.00025092,2]
[400116164,1767132651304,-265.3,0.00025117,2]
[400116165,1767132651313,-296.26933556,0.00025145,2]
[400116166,1767132651323,-151.0,0.00025145,2]
[400116167,1767132651332,-553.64373807,0.00025145,2]
[400116168,1767132651341,-302.11441947,0.00025189,63]
[400116169,1767132651350,-579.46320172,0.000252,5]
[400116170,1767132651359,-165.69,0.000252,7]
[400116171,1767132651368,-825.0,0.00025205,2]
[400116172,1767132651378,-1509.29405243,0.00025241,3]
[400116173,1767132651388,-13544.08995535,0.0002525,2]
[400116174,1767132651397,-825.0,0.00025269,2]
[400116175,1767132651406,-168.0,0.0002532,2]
[400116176,1767132651415,-1742.43696975,0.00025351,2]
[400116177,1767132651425,-168.0,0.00025381,2]
[400116178,1767132651434,-825.0,0.00025411,2]
[400116179,1767132651443,-800.0,0.0002543,2]
[400116180,1767132651453,-151.05720972,0.00025434,110]
[400116181,1767132651462,-265.3,0.00025458,2]
[400116182,1767132651471,-900.0,0.00025469,3]
[400116183,1767132651480,-302.11441947,0.00025478,79]
[400116184,1767132651489,-1000.0,0.000255,2]
[400116185,1767132651499,-3000.0,0.000255,2]
[400116186,1767132651512,-168.0,0.00025504,2]
[400116187,1767132651521,-3000.0,0.0002551,2]
[400116188,1767132651531,-3000.0,0.0002552,2]
[400116189,1767132651540,-825.0,0.00025529,2]
[400116190,1767132651549,-3000.0,0.0002553,2]
[400116191,1767132651559,-3000.0,0.0002554,2]
[400116192,1767132651568,-3000.0,0.0002555,2]
[400116193,1767132651577,-3000.0,0.0002556,2]
[400116194,1767132651587,-168.0,0.00025568,2]
[400116195,1767132651596,-3000.0,0.0002557,2]
[400116196,1767132651605,-3000.0,0.0002558,2]
[400116197,1767132651615,-538.16108523,0.00025585,2]
[400116198,1767132651624,-3000.0,0.0002559,2]
[400116199,1767132651633,-3000.0,0.000256,2]
[400116200,1767132651643,-800.0,0.00025605,2]
[400116201,1767132651652,-3000.0,0.0002561,2]
[400116202,1767132651662,-3000.0,0.0002562,2]
[400116203,1767132651671,-800.0,0.00025624,2]
[400116204,1767132651680,-3000.0,0.0002563,2]
[400116205,1767132651689,-3000.0,0.0002564,2]
[400116206,1767132651699,-3000.0,0.0002565,2]
[400116207,1767132651708,-5137.264565,0.0002566,2]
[400116208,1767132651717,-574.12855637,0.00025693,2]
[400116209,1767132651727,-408.0,0.000257,2]
[400116210,1767132651736,-168.0,0.00025723,2]
[400116211,1767132651745,-168.0,0.00025737,2]
[400116212,1767132651754,-302.11441947,0.00025767,94]
[400116213,1767132651764,-265.3,0.00025799,2]
[400116214,1767132651773,-168.0,0.00025813,2]
[400116215,1767132651783,-5000.0,0.00025846,2]
[400116216,1767132651792,-1501.63207536,0.0002587,2]
[400116217,1767132651801,-168.0,0.0002593,2]
[400116218,1767132651811,-300.35112488,0.00025996,15]
[400116219,1767132651820,-19489.81,0.00026,2]
[400116220,1767132651829,-161.0,0.00026,5]
[400116221,1767132651838,-39742.13262439,0.00026,10]
[400116222,1767132651847,-529.2410511,0.00026,2]
[400116223,1767132651857,-1041.66666667,0.00026,10]
[400116224,1767132651866,-4473.0,0.00026031,2]
[400116225,1767132651876,-500.0,0.00026076,7]
[400116226,1767132651885,-168.0,0.00026091,2]
[400116227,1767132651895,-1552.86,0.000261,14]
[400116228,1767132651904,-288.35,0.000261,7]
[400116229,1767132651914,-8981.25,0.000261,2]
[400116230,1767132651923,-251.305,0.00026106,2]
[400116231,1767132651934,-161.0,0.0002612,3]
[400116232,1767132651943,-726.0,0.0002612,3]
[400116233,1767132651953,-265.3,0.00026139,2]
[400116234,1767132651962,-150.0,0.000262,2]
[400116235,1767132651971,-150.49,0.000262,2]
[400116236,1767132651980,-250.0,0.000262,2]
[400116237,1767132651989,-2156.0,0.000262,2]
[400116238,1767132651998,-627.0,0.000262,2]
[400116239,1767132652007,-151.0,0.00026239,2]
[400116240,1767132652017,-161.45831758,0.00026239,2]
[400116241,1767132652027,-595.37131296,0.00026241,2]
[400116242,1767132652036,-2000.0,0.00026425,7]
[400116243,1767132652045,-726.0,0.0002644,3]
[400116244,1767132652054,-151.0,0.00026473,3]
[400116245,1767132652065,-151.0,0.00026473,3]
[400116246,1767132652074,-161.5212068,0.00026473,3]
[400116247,1767132652084,-265.3,0.0002648,2]
[400116248,1767132652104,-726.0,0.00026571,3]
[400116249,1767132652113,-165.69,0.000266,7]
[400116250,1767132652123,-600.0,0.00026611,2]
[400116251,1767132652133,-500.0,0.00026612,7]
[400116252,1767132652142,-3176.0,0.00026639,2]
[400116253,1767132652152,-5116.0,0.00026647,2]
[400116254,1767132652162,-464.736496,0.00026676,2]
[400116255,1767132652171,-726.0,0.00026719,3]
[400116256,1767132652189,-617.40005154,0.00026789,2]
[400116257,1767132652199,-265.3,0.00026821,2]
[400116258,1767132652208,-2769.70299228,0.00026888,2]
[400116259,1767132652218,-600.0,0.00026888,2]
[400116260,1767132652227,-200.0,0.0002689,2]
[400116261,1767132652236,-200.0,0.0002689,3]
[400116262,1767132652245,-166.34,0.000269,7]
[400116263,1767132652255,-452.65488234,0.00026917,2]
[400116264,1767132652264,-297085.02692722,0.00026998,2]
[400116265,1767132652274,-1267.74428336,0.00027,2]
[400116266,1767132652283,-183.0,0.00027,7]
[400116267,1767132652293,-437.0,0.00027,2]
[400116268,1767132652302,-1041.66666667,0.00027,7]
[400116269,1767132652312,-167.0,0.00027,7]
[400116270,1767132652390,-726.0,0.00027023,3]
[400116271,1767132652400,-726.0,0.00027039,3]
[400116272,1767132652409,-160.0,0.0002708,3]
[400116273,1767132652419,-9133.32457941,0.00027126,2]
[400116274,1767132652428,-726.0,0.00027129,3]
[400116275,1767132652437,-265.3,0.00027162,2]
[400116276,1767132652447,-600.0,0.00027166,2]
[400116277,1767132652456,-827.0,0.00027181,2]
[400116278,1767132652465,-160.0,0.00027211,3]
[400116279,1767132652474,-300.35112488,0.00027217,17]
[400116280,1767132652484,-13544.08995535,0.00027307,2]
[400116281,1767132652494,-640.24385345,0.00027337,2]
[400116282,1767132652503,-726.0,0.00027359,3]
[400116283,1767132652517,-726.0,0.00027359,3]
[400116284,1767132652526,-1742.43696975,0.00027368,2]
[400116285,1767132652535,-568.73029361,0.0002739,7]
[400116286,1767132652544,-150.0,0.0002739,2]
[400116287,1767132652555,-584.15670251,0.00027397,2]
[400116288,1767132652564,-299.0,0.00027397,2]
[400116289,1767132652573,-299.0,0.00027397,2]
[400116290,1767132652583,-299.0,0.00027397,2]
[400116291,1767132652592,-299.0,0.00027397,2]
[400116292,1767132652602,-299.0,0.00027397,2]
[400116293,1767132652613,-299.0,0.00027397,2]
[400116294,1767132652624,-299.0,0.00027397,2]
[400116295,1767132652634,-299.0,0.00027397,2]
[400116296,1767132652643,-299.0,0.00027397,2]
[400116297,1767132652652,-151.0,0.00027397,7]
[400116298,1767132652662,-151.0,0.00027397,7]
[400116299,1767132652671,-151.0,0.00027397,7]
[400116300,1767132652680,-299.0,0.00027397,2]
[400116301,1767132652689,-299.0,0.00027397,2]
[400116302,1767132652699,-299.0,0.00027397,2]
[400116303,1767132652708,-299.0,0.00027397,2]
[400116304,1767132652717,-299.0,0.00027397,2]
[400116305,1767132652726,-299.0,0.00027397,2]
[400116306,1767132652736,-151.0,0.00027397,7]
[400116307,1767132652745,-182.655177,0.00027397,7]
[400116308,1767132652754,-151.0,0.00027397,7]
[400116309,1767132652763,-254.98888,0.00027397,7]
[400116310,1767132652772,-299.0,0.00027397,2]
[400116311,1767132652782,-299.0,0.00027397,2]
[400116312,1767132652791,-299.0,0.00027397,2]
[400116313,1767132652801,-299.0,0.00027397,2]
[400116314,1767132652810,-299.0,0.00027397,2]
[400116315,1767132652819,-299.0,0.00027397,2]
[400116316,1767132652828,-299.0,0.00027397,2]
[400116317,1767132652837,-299.0,0.00027397,2]
[400116318,1767132652846,-299.0,0.00027397,2]
[400116319,1767132652856,-299.0,0.00027397,2]
[400116320,1767132652865,-299.0,0.00027397,2]
[400116321,1767132652874,-299.0,0.00027397,2]
[400116322,1767132652883,-151.0,0.00027397,7]
[400116323,1767132652893,-151.0,0.00027397,7]
[400116324,1767132652902,-151.0,0.00027397,7]
[400116325,1767132652912,-151.0,0.00027397,7]
[400116326,1767132652921,-151.0,0.00027397,7]
[400116327,1767132652930,-151.0,0.00027397,7]
[400116328,1767132652939,-151.0,0.00027397,7]
[400116329,1767132652948,-151.0,0.00027397,7]
[400116330,1767132652957,-151.0,0.00027397,7]
[400116331,1767132652967,-151.0,0.00027397,7]
[400116332,1767132652976,-151.0,0.00027397,7]
[400116333,1767132652985,-151.0,0.00027397,7]
[400116334,1767132652994,-151.0,0.00027397,7]
[400116335,1767132653003,-151.0,0.00027397,7]
[400116336,1767132653012,-151.0,0.00027397,7]
[400116337,1767132653022,-151.0,0.00027397,7]
[400116338,1767132653031,-233.975521,0.00027397,7]
[400116339,1767132653040,-151.0,0.00027397,7]
[400116340,1767132653049,-151.0,0.00027397,7]
[400116341,1767132653059,-176.253592,0.00027397,7]
[400116342,1767132653068,-151.0,0.00027397,7]
[400116343,1767132653077,-151.0,0.00027397,7]
[400116344,1767132653087,-151.0,0.00027397,7]
[400116345,1767132653096,-151.0,0.00027397,7]
[400116346,1767132653105,-151.0,0.00027397,7]
[400116347,1767132653114,-151.0,0.00027397,7]
[400116348,1767132653124,-151.0,0.00027397,7]
[400116349,1767132653133,-151.0,0.00027397,7]
[400116350,1767132653142,-151.0,0.00027397,7]
[400116351,1767132653151,-151.0,0.00027397,7]
[400116352,1767132653161,-151.0,0.00027397,7]
[400116353,1767132653170,-151.0,0.00027397,7]
[400116354,1767132653179,-151.0,0.00027397,7]
[400116355,1767132653188,-151.0,0.00027397,7]
[400116356,1767132653197,-240.753329,0.00027397,7]
[400116357,1767132653206,-264.111661,0.00027397,7]
[400116358,1767132653215,-151.0,0.00027397,7]
[400116359,1767132653224,-299.0,0.00027397,2]
[400116360,1767132653234,-299.0,0.00027397,2]
[400116361,1767132653243,-299.0,0.00027397,2]
[400116362,1767132653252,-299.0,0.00027397,2]
[400116363,1767132653262,-299.0,0.00027397,2]
[400116364,1767132653271,-152.177869,0.00027397,7]
[400116365,1767132653280,-151.0,0.00027397,7]
[400116366,1767132653289,-151.0,0.00027397,7]
[400116367,1767132653299,-151.0,0.00027397,7]
[400116368,1767132653308,-155.54786,0.00027397,7]
[400116369,1767132653317,-151.0,0.00027397,7]
[400116370,1767132653326,-151.0,0.00027397,7]
[400116371,1767132653335,-151.0,0.00027397,7]
[400116372,1767132653344,-151.0,0.00027397,7]
[400116373,1767132653353,-151.0,0.00027397,7]
[400116374,1767132653363,-151.0,0.00027397,7]
[400116375,1767132653372,-151.0,0.00027397,7]
[400116376,1767132653381,-151.0,0.00027397,7]
[400116377,1767132653390,-151.0,0.00027397,7]
[400116378,1767132653399,-151.0,0.00027397,7]
[400116379,1767132653409,-151.0,0.00027397,7]
[400116380,1767132653418,-151.0,0.00027397,7]
[400116381,1767132653427,-151.0,0.00027397,7]
[400116382,1767132653435,-151.0,0.00027397,7]
[400116383,1767132653444,-151.0,0.00027397,7]
[400116384,1767132653453,-161.480743,0.00027397,7]
[400116385,1767132653462,-151.0,0.00027397,7]
[400116386,1767132653471,-151.0,0.00027397,7]
[400116387,1767132653480,-151.0,0.00027397,7]
[400116388,1767132653489,-151.0,0.00027397,7]
[400116389,1767132653498,-153.816475,0.00027397,7]
[400116390,1767132653510,-184.789263,0.00027397,7]
[400116391,1767132653519,-151.0,0.00027397,7]
[400116392,1767132653529,-151.0,0.00027397,7]
[400116393,1767132653538,-151.0,0.00027397,7]
[400116394,1767132653548,-151.0,0.00027397,7]
[400116395,1767132653557,-151.0,0.00027397,7]
[400116396,1767132653566,-151.0,0.00027397,7]
[400116397,1767132653575,-151.0,0.00027397,7]
[400116398,1767132653584,-151.0,0.00027397,7]
[400116399,1767132653657,-151.0,0.00027397,7]
[400116400,1767132653667,-151.0,0.00027397,7]
[400116401,1767132653677,-151.0,0.00027397,7]
[400116402,1767132653686,-151.0,0.00027397,7]
[400116403,1767132653696,-151.0,0.00027397,7]
[400116404,1767132653705,-151.0,0.00027397,7]
[400116405,1767132653714,-175.507726,0.00027397,7]
[400116406,1767132653723,-151.0,0.00027397,7]
[400116407,1767132653732,-151.0,0.00027397,7]
[400116408,1767132653742,-151.0,0.00027397,7]
[400116409,1767132653751,-151.0,0.00027397,7]
[400116410,1767132653760,-151.0,0.00027397,7]
[400116411,1767132653770,-151.0,0.00027397,7]
[400116412,1767132653779,-151.0,0.00027397,7]
[400116413,1767132653789,-151.0,0.00027397,7]
[400116414,1767132653799,-163.367895,0.00027397,7]
[400116415,1767132653808,-151.0,0.00027397,7]
[400116416,1767132653818,-151.0,0.00027397,7]
[400116417,1767132653828,-151.0,0.00027397,7]
[400116418,1767132653837,-151.0,0.00027397,7]
[400116419,1767132653846,-151.0,0.00027397,7]
[400116420,1767132653855,-151.0,0.00027397,7]
[400116421,1767132653865,-151.0,0.00027397,7]
[400116422,1767132653874,-151.0,0.00027397,7]
[400116423,1767132653883,-208.758378,0.00027397,7]
[400116424,1767132653892,-151.0,0.00027397,7]
[400116425,1767132653901,-151.0,0.00027397,7]
[400116426,1767132653910,-151.0,0.00027397,7]
[400116427,1767132653920,-151.0,0.00027397,7]
[400116428,1767132653929,-151.0,0.00027397,7]
[400116429,1767132653938,-151.0,0.00027397,7]
[400116430,1767132653948,-151.0,0.00027397,7]
[400116431,1767132653957,-151.0,0.00027397,7]
[400116432,1767132653966,-151.0,0.00027397,7]
[400116433,1767132653975,-151.0,0.00027397,7]
[400116434,1767132653985,-151.0,0.00027397,7]
[400116435,1767132653994,-151.0,0.00027397,7]
[400116436,1767132654003,-151.0,0.00027397,7]
[400116437,1767132654012,-151.0,0.00027397,7]
[400116438,1767132654022,-246.396232,0.00027397,7]
[400116439,1767132654031,-151.0,0.00027397,7]
[400116440,1767132654041,-151.0,0.00027397,7]
[400116441,1767132654050,-151.0,0.00027397,7]
[400116442,1767132654059,-151.0,0.00027397,7]
[400116443,1767132654068,-151.0,0.00027397,7]
[400116444,1767132654078,-151.0,0.00027397,7]
[400116445,1767132654087,-151.0,0.00027397,7]
[400116446,1767132654097,-151.0,0.00027397,7]
[400116447,1767132654106,-154.653823,0.00027397,7]
[400116448,1767132654115,-590.229866,0.00027397,7]
[400116449,1767132654125,-590.229866,0.00027397,7]
[400116450,1767132654134,-590.229866,0.00027397,7]
[400116451,1767132654143,-590.229866,0.00027397,7]
[400116452,1767132654152,-590.229866,0.00027397,7]
[400116453,1767132654162,-590.229866,0.00027397,7]
[400116454,1767132654171,-590.229866,0.00027397,7]
[400116455,1767132654180,-590.229866,0.00027397,7]
[400116456,1767132654190,-590.229866,0.00027397,7]
[400116457,1767132654199,-590.229866,0.00027397,7]
[400116458,1767132654209,-590.229866,0.00027397,7]
[400116459,1767132654219,-590.229866,0.00027397,7]
[400116460,1767132654228,-590.229866,0.00027397,7]
[400116461,1767132654238,-590.229866,0.00027397,7]
[400116462,1767132654248,-590.229866,0.00027397,7]
[400116463,1767132654258,-590.229866,0.00027397,7]
[400116464,1767132654267,-590.229866,0.00027397,7]
[400116465,1767132654281,-590.229866,0.00027397,7]
[400116466,1767132654292,-590.229866,0.00027397,7]
[400116467,1767132654302,-590.229864,0.00027397,7]
[400116468,1767132654315,-151.0,0.00027397,7]
[400116469,1767132654325,-151.0,0.00027397,7]
[400116470,1767132654335,-151.0,0.00027397,7]
[400116471,1767132654345,-151.0,0.00027397,7]
[400116472,1767132654354,-151.0,0.00027397,7]
[400116473,1767132654364,-151.0,0.00027397,7]
[400116474,1767132654374,-151.0,0.00027397,7]
[400116475,1767132654383,-151.0,0.00027397,7]
[400116476,1767132654392,-276.652553,0.00027397,7]
[400116477,1767132654402,-151.0,0.00027397,7]
[400116478,1767132654412,-151.0,0.00027397,7]
[400116479,1767132654422,-154.472401,0.00027397,7]
[400116480,1767132654431,-151.0,0.00027397,7]
[400116481,1767132654440,-206.345452,0.00027397,7]
[400116482,1767132654449,-206.345452,0.00027397,7]
[400116483,1767132654459,-206.345452,0.00027397,7]
[400116484,1767132654468,-206.345452,0.00027397,7]
[400116485,1767132654478,-206.345452,0.00027397,7]
[400116486,1767132654487,-206.345452,0.00027397,7]
[400116487,1767132654496,-206.345452,0.00027397,7]
[400116488,1767132654506,-206.345452,0.00027397,7]
[400116489,1767132654519,-206.345452,0.00027397,7]
[400116490,1767132654529,-206.345452,0.00027397,7]
[400116491,1767132654540,-206.345452,0.00027397,7]
[400116492,1767132654551,-206.345452,0.00027397,7]
[400116493,1767132654560,-206.345452,0.00027397,7]
[400116494,1767132654571,-206.345452,0.00027397,7]
[400116495,1767132654580,-206.345452,0.00027397,7]
[400116496,1767132654592,-206.345452,0.00027397,7]
[400116497,1767132654601,-206.345452,0.00027397,7]
[400116498,1767132654611,-206.345452,0.00027397,7]
[400116499,1767132654622,-206.345452,0.00027397,7]
[400116500,1767132654634,-206.345456,0.00027397,7]
[400116501,1767132654643,-151.0,0.00027397,7]
[400116502,1767132654653,-151.0,0.00027397,7]
[400116503,1767132654663,-249.067044,0.00027397,7]
[400116504,1767132654673,-246.486511,0.00027397,7]
[400116505,1767132654683,-246.486511,0.00027397,7]
[400116506,1767132654692,-246.486511,0.00027397,7]
[400116507,1767132654702,-246.486511,0.00027397,7]
[400116508,1767132654711,-246.486511,0.00027397,7]
[400116509,1767132654721,-246.486511,0.00027397,7]
[400116510,1767132654731,-246.486511,0.00027397,7]
[400116511,1767132654741,-246.486511,0.00027397,7]
[400116512,1767132654750,-246.486511,0.00027397,7]
[400116513,1767132654760,-246.486511,0.00027397,7]
[400116514,1767132654770,-246.486511,0.00027397,7]
[400116515,1767132654779,-246.486511,0.00027397,7]
[400116516,1767132654789,-246.486511,0.00027397,7]
[400116517,1767132654799,-246.486511,0.00027397,7]
[400116518,1767132654874,-246.486511,0.00027397,7]
[400116519,1767132654885,-246.486511,0.00027397,7]
[400116520,1767132654902,-246.486511,0.00027397,7]
[400116521,1767132654911,-246.486511,0.00027397,7]
[400116522,1767132654923,-246.486511,0.00027397,7]
[400116523,1767132654932,-246.486511,0.00027397,7]
[400116524,1767132654942,-157.217359,0.00027397,7]
[400116525,1767132654951,-157.217359,0.00027397,7]
[400116526,1767132654960,-157.217359,0.00027397,7]
[400116527,1767132654969,-157.217359,0.00027397,7]
[400116528,1767132654979,-157.217359,0.00027397,7]
[400116529,1767132654988,-157.217359,0.00027397,7]
[400116530,1767132654998,-157.217359,0.00027397,7]
[400116531,1767132655007,-157.217359,0.00027397,7]
[400116532,1767132655016,-157.217359,0.00027397,7]
[400116533,1767132655026,-157.217359,0.00027397,7]
[400116534,1767132655035,-157.217359,0.00027397,7]
[400116535,1767132655044,-157.217359,0.00027397,7]
[400116536,1767132655054,-157.217359,0.00027397,7]
[400116537,1767132655063,-157.217359,0.00027397,7]
[400116538,1767132655072,-157.217359,0.00027397,7]
[400116539,1767132655081,-157.217359,0.00027397,7]
[400116540,1767132655091,-157.217359,0.00027397,7]
[400116541,1767132655100,-157.217359,0.00027397,7]
[400116542,1767132655109,-157.217359,0.00027397,7]
[400116543,1767132655118,-157.217361,0.00027397,7]
[400116544,1767132655128,-151.0,0.00027397,7]
[400116545,1767132655138,-151.0,0.00027397,7]
[400116546,1767132655148,-151.0,0.00027397,7]
[400116547,1767132655158,-151.0,0.00027397,7]
[400116548,1767132655167,-294.152848,0.00027397,7]
[400116549,1767132655176,-151.0,0.00027397,7]
[400116550,1767132655186,-151.0,0.00027397,7]
[400116551,1767132655195,-151.0,0.00027397,7]
[400116552,1767132655204,-151.0,0.00027397,7]
[400116553,1767132655213,-151.0,0.00027397,7]
[400116554,1767132655223,-151.0,0.00027397,7]
[400116555,1767132655232,-151.0,0.00027397,7]
[400116556,1767132655242,-151.0,0.00027397,7]
[400116557,1767132655253,-151.0,0.00027397,7]
[400116558,1767132655263,-151.0,0.00027397,7]
[400116559,1767132655273,-151.0,0.00027397,7]
[400116560,1767132655282,-151.0,0.00027397,7]
[400116561,1767132655291,-151.0,0.00027397,7]
[400116562,1767132655301,-151.0,0.00027397,7]
[400116563,1767132655310,-238.364622,0.00027397,7]
[400116564,1767132655319,-264.153595,0.00027397,7]
[400116565,1767132655329,-151.0,0.00027397,7]
[400116566,1767132655338,-151.461106,0.00027397,7]
[400116567,1767132655348,-151.0,0.00027397,7]
[400116568,1767132655357,-152.251076,0.00027397,7]
[400116569,1767132655367,-151.0,0.00027397,7]
[400116570,1767132655377,-151.0,0.00027397,7]
[400116571,1767132655388,-151.0,0.00027397,7]
[400116572,1767132655397,-151.0,0.00027397,7]
[400116573,1767132655407,-231.581003,0.00027397,7]
[400116574,1767132655416,-205.896426,0.00027397,7]
[400116575,1767132655426,-205.896426,0.00027397,7]
[400116576,1767132655436,-205.896426,0.00027397,7]
[400116577,1767132655445,-205.896426,0.00027397,7]
[400116578,1767132655455,-167.845049,0.00027397,7]
[400116579,1767132655464,-167.845049,0.00027397,7]
[400116580,1767132655473,-205.896426,0.00027397,7]
[400116581,1767132655482,-167.845049,0.00027397,7]
[400116582,1767132655492,-167.845049,0.00027397,7]
[400116583,1767132655501,-205.896426,0.00027397,7]
[400116584,1767132655515,-167.845049,0.00027397,7]
[400116585,1767132655524,-205.896426,0.00027397,7]
[400116586,1767132655534,-167.845049,0.00027397,7]
[400116587,1767132655544,-205.896426,0.00027397,7]
[400116588,1767132655554,-167.845049,0.00027397,7]
[400116589,1767132655564,-205.896426,0.00027397,7]
[400116590,1767132655573,-167.845049,0.00027397,7]
[400116591,1767132655583,-205.896426,0.00027397,7]
[400116592,1767132655593,-167.845049,0.00027397,7]
[400116593,1767132655602,-205.896426,0.00027397,7]
[400116594,1767132655612,-167.845049,0.00027397,7]
[400116595,1767132655622,-205.896426,0.00027397,7]
[400116596,1767132655632,-167.845049,0.00027397,7]
[400116597,1767132655643,-205.896426,0.00027397,7]
[400116598,1767132655652,-167.845049,0.00027397,7]
[400116599,1767132655662,-205.896426,0.00027397,7]
[400116600,1767132655671,-167.845049,0.00027397,7]
[400116601,1767132655682,-205.896426,0.00027397,7]
[400116602,1767132655691,-167.845049,0.00027397,7]
[400116603,1767132655701,-205.896426,0.00027397,7]
[400116604,1767132655711,-167.845049,0.00027397,7]
[400116605,1767132655721,-205.896426,0.00027397,7]
[400116606,1767132655730,-167.845049,0.00027397,7]
[400116607,1767132655740,-167.845049,0.00027397,7]
[400116608,1767132655750,-205.896426,0.00027397,7]
[400116609,1767132655759,-167.845049,0.00027397,7]
[400116610,1767132655769,-205.896426,0.00027397,7]
[400116611,1767132655779,-167.845049,0.00027397,7]
[400116612,1767132655788,-205.896422,0.00027397,7]
[400116613,1767132655798,-167.845046,0.00027397,7]
[400116614,1767132655808,-151.000022,0.00027397,7]
[400116615,1767132655818,-151.0,0.00027397,7]
[400116616,1767132655828,-151.0,0.00027397,7]
[400116617,1767132655838,-155.465049,0.00027397,7]
[400116618,1767132655848,-151.0,0.00027397,7]
[400116619,1767132655858,-151.0,0.00027397,7]
[400116620,1767132655867,-151.0,0.00027397,7]
[400116621,1767132655877,-151.0,0.00027397,7]
[400116622,1767132655887,-151.0,0.00027397,7]
[400116623,1767132655897,-151.0,0.00027397,7]
[400116624,1767132655906,-151.0,0.00027397,7]
[400116625,1767132655916,-151.0,0.00027397,7]
[400116626,1767132655925,-151.0,0.00027397,7]
[400116627,1767132655992,-151.0,0.00027397,7]